[Event "Late-Titled-Tuesday-Blitz-January-16-2024"]
[Site "Chess.com"]
[Date "2024.01.16"]
[Round "6"]
[White "ChessRook_E"]
[Black "ural58"]
[Result "1-0"]
[WhiteElo "2208"]
[BlackElo "2445"]
[TimeControl "180+1"]
[EndTime "15:04:40 PST"]
[Termination "ChessRook_E won on time"]

1. d4 {[%clk 0:03:00.9]} 1... d5 {[%clk 0:02:59.8]} 2. c4 {[%clk 0:03:00.4]}
2... e5 {[%clk 0:02:59.6]} 3. dxe5 {[%clk 0:02:58.5]} 3... d4 {[%clk 0:02:59.7]}
4. Nf3 {[%clk 0:02:57.9]} 4... Nc6 {[%clk 0:02:59.2]} 5. e3 {[%clk 0:02:50.7]}
5... Bb4+ {[%clk 0:02:55.9]} 6. Bd2 {[%clk 0:02:47.7]} 6... dxe3 {[%clk
0:02:53.6]} 7. fxe3 {[%clk 0:02:48.4]} 7... Bxd2+ {[%clk 0:02:53.2]} 8. Nbxd2
{[%clk 0:02:49.3]} 8... Nge7 {[%clk 0:02:48]} 9. Be2 {[%clk 0:02:46.2]} 9... Ng6
{[%clk 0:02:47.4]} 10. Qa4 {[%clk 0:02:43.7]} 10... O-O {[%clk 0:02:46.7]} 11.
O-O {[%clk 0:02:41]} 11... Ncxe5 {[%clk 0:02:41.1]} 12. Qc2 {[%clk 0:02:36.6]}
12... Ng4 {[%clk 0:02:27]} 13. Qc3 {[%clk 0:02:18.7]} 13... Re8 {[%clk
0:02:12.1]} 14. e4 {[%clk 0:02:17.6]} 14... c6 {[%clk 0:01:57.3]} 15. h3 {[%clk
0:02:05.9]} 15... N4e5 {[%clk 0:01:50.7]} 16. Nxe5 {[%clk 0:01:58.9]} 16... Nxe5
{[%clk 0:01:47.9]} 17. Nf3 {[%clk 0:01:55]} 17... Qb6+ {[%clk 0:01:40.3]} 18. c5
{[%clk 0:01:52.7]} 18... Qc7 {[%clk 0:01:35.3]} 19. Rad1 {[%clk 0:01:34.8]}
19... Nxf3+ {[%clk 0:01:31.1]} 20. Bxf3 {[%clk 0:01:35.7]} 20... Be6 {[%clk
0:01:31.2]} 21. Rd6 {[%clk 0:01:34.7]} 21... b6 {[%clk 0:01:19.9]} 22. Rfd1
{[%clk 0:01:34.3]} 22... bxc5 {[%clk 0:01:19.6]} 23. Qxc5 {[%clk 0:01:33.8]}
23... Bxa2 {[%clk 0:01:12.5]} 24. Rxc6 {[%clk 0:01:22.8]} 24... Qg3 {[%clk
0:01:02.2]} 25. Qd6 {[%clk 0:00:55.9]} 25... Qxd6 {[%clk 0:00:49]} 26. Rcxd6
{[%clk 0:00:54.1]} 26... Be6 {[%clk 0:00:47]} 27. R1d2 {[%clk 0:00:50.9]} 27...
h6 {[%clk 0:00:45.2]} 28. Ra6 {[%clk 0:00:48.6]} 28... Re7 {[%clk 0:00:40.8]}
29. Rad6 {[%clk 0:00:46]} 29... Rb8 {[%clk 0:00:39.3]} 30. Kh2 {[%clk
0:00:42.1]} 30... g5 {[%clk 0:00:38.7]} 31. e5 {[%clk 0:00:31]} 31... Kg7 {[%clk
0:00:38.3]} 32. Kg3 {[%clk 0:00:23.7]} 32... Rc7 {[%clk 0:00:35]} 33. h4 {[%clk
0:00:21.2]} 33... Rb5 {[%clk 0:00:30.5]} 34. hxg5 {[%clk 0:00:20.7]} 34... hxg5
{[%clk 0:00:26.2]} 35. Bd5 {[%clk 0:00:20.2]} 35... Bxd5 {[%clk 0:00:12.6]} 36.
R6xd5 {[%clk 0:00:21.1]} 36... Rxd5 {[%clk 0:00:12.3]} 37. Rxd5 {[%clk 0:00:22]}
37... Rb7 {[%clk 0:00:10.2]} 38. Rd2 {[%clk 0:00:16.6]} 38... Rb4 {[%clk
0:00:10.1]} 39. Re2 {[%clk 0:00:16.2]} 39... a5 {[%clk 0:00:08.6]} 40. Kf3
{[%clk 0:00:16.3]} 40... Kg6 {[%clk 0:00:08.6]} 41. g4 {[%clk 0:00:13.1]} 41...
Rf4+ {[%clk 0:00:08]} 42. Kg3 {[%clk 0:00:13.3]} 42... Rb4 {[%clk 0:00:07.9]}
43. Kf3 {[%clk 0:00:09.5]} 43... a4 {[%clk 0:00:07.9]} 44. Kg3 {[%clk
0:00:09.3]} 44... Rb3+ {[%clk 0:00:08.1]} 45. Kg2 {[%clk 0:00:09.5]} 45... Kg7
{[%clk 0:00:06.8]} 46. Rd2 {[%clk 0:00:08]} 46... Re3 {[%clk 0:00:05.9]} 47. Rd4
{[%clk 0:00:07.3]} 47... Rxe5 {[%clk 0:00:05.5]} 48. Rxa4 {[%clk 0:00:07.3]}
48... Re2+ {[%clk 0:00:06.1]} 49. Kf3 {[%clk 0:00:07.6]} 49... Rxb2 {[%clk
0:00:06.8]} 50. Ra5 {[%clk 0:00:08]} 50... f6 {[%clk 0:00:03.2]} 51. Ra7+ {[%clk
0:00:06.8]} 51... Kg6 {[%clk 0:00:03.8]} 52. Ra6 {[%clk 0:00:07.4]} 52... Rb3+
{[%clk 0:00:04.1]} 53. Kg2 {[%clk 0:00:07.5]} 53... Rb4 {[%clk 0:00:04.8]} 54.
Kg3 {[%clk 0:00:07.9]} 1-0

[Event "Late-Titled-Tuesday-Blitz-January-16-2024"]
[Site "Chess.com"]
[Date "2024.01.16"]
[Round "6"]
[White "GHANDEEVAM2003"]
[Black "mishanick"]
[Result "0-1"]
[WhiteElo "3008"]
[BlackElo "3098"]
[TimeControl "180+1"]
[EndTime "15:04:43 PST"]
[Termination "mishanick won by checkmate"]

1. c4 {[%clk 0:02:54.5]} 1... e6 {[%clk 0:02:59.8]} 2. Nf3 {[%clk 0:02:54.4]}
2... d5 {[%clk 0:03:00.7]} 3. e3 {[%clk 0:02:54.7]} 3... Nf6 {[%clk 0:03:00.4]}
4. b3 {[%clk 0:02:54.4]} 4... b6 {[%clk 0:02:59.8]} 5. Bb2 {[%clk 0:02:54.9]}
5... Bb7 {[%clk 0:02:59.2]} 6. Nc3 {[%clk 0:02:54.6]} 6... Be7 {[%clk
0:02:55.4]} 7. cxd5 {[%clk 0:02:52.7]} 7... exd5 {[%clk 0:02:55.8]} 8. Ne2
{[%clk 0:02:50.4]} 8... Nbd7 {[%clk 0:02:47.5]} 9. g3 {[%clk 0:02:45.6]} 9...
Nc5 {[%clk 0:02:44.7]} 10. Nf4 {[%clk 0:02:36.9]} 10... O-O {[%clk 0:02:41.3]}
11. Bg2 {[%clk 0:02:35.9]} 11... Ba6 {[%clk 0:02:39.5]} 12. d3 {[%clk
0:02:34.6]} 12... Bd6 {[%clk 0:02:34.1]} 13. b4 {[%clk 0:02:29]} 13... Ne6
{[%clk 0:02:27.2]} 14. Qb3 {[%clk 0:02:28.6]} 14... Nxf4 {[%clk 0:02:14.9]} 15.
gxf4 {[%clk 0:02:29.5]} 15... c5 {[%clk 0:02:13.9]} 16. Ne5 {[%clk 0:02:19.6]}
16... cxb4 {[%clk 0:01:56.6]} 17. Nc6 {[%clk 0:02:14.8]} 17... Qd7 {[%clk
0:01:54.4]} 18. Bxf6 {[%clk 0:02:14.9]} 18... Qxc6 {[%clk 0:01:54.6]} 19. Bxd5
{[%clk 0:02:14.2]} 19... Qd7 {[%clk 0:01:42.8]} 20. Rg1 {[%clk 0:02:12.1]} 20...
g6 {[%clk 0:01:43.1]} 21. Bxa8 {[%clk 0:01:46.1]} 21... Rxa8 {[%clk 0:01:42.5]}
22. Qd5 {[%clk 0:01:46.8]} 22... Bb7 {[%clk 0:01:29.2]} 23. Qg5 {[%clk
0:01:46.3]} 23... Rc8 {[%clk 0:01:08.4]} 24. Bd4 {[%clk 0:01:41.8]} 24... b3
{[%clk 0:00:48]} 25. a3 {[%clk 0:01:08.8]} 25... Bc5 {[%clk 0:00:38.7]} 26. Bb2
{[%clk 0:01:02]} 26... Be7 {[%clk 0:00:30.2]} 27. Qe5 {[%clk 0:00:56.6]} 27...
f6 {[%clk 0:00:30.2]} 28. Qd4 {[%clk 0:00:57]} 28... Qh3 {[%clk 0:00:20.4]} 29.
Rf1 {[%clk 0:00:33]} 29... Rc2 {[%clk 0:00:18.7]} 30. Rc1 {[%clk 0:00:28.7]}
30... Bg2 {[%clk 0:00:10.1]} 31. Rxc2 {[%clk 0:00:20.5]} 31... bxc2 {[%clk
0:00:11]} 32. Qc4+ {[%clk 0:00:21.4]} 32... Kf8 {[%clk 0:00:10.3]} 33. Rg1
{[%clk 0:00:15.3]} 33... Qxh2 {[%clk 0:00:09.1]} 34. Rxg2 {[%clk 0:00:14.9]}
34... Qh1+ {[%clk 0:00:09]} 35. Kd2 {[%clk 0:00:14.5]} 35... Qxg2 {[%clk
0:00:03.3]} 36. Qc8+ {[%clk 0:00:09.2]} 36... Kg7 {[%clk 0:00:03.9]} 37. Kxc2
{[%clk 0:00:03.1]} 37... Qxf2+ {[%clk 0:00:04.2]} 38. Kb3 {[%clk 0:00:03.7]}
38... Qxe3 {[%clk 0:00:04.8]} 39. Qc4 {[%clk 0:00:04.5]} 39... h5 {[%clk
0:00:04.5]} 40. Bd4 {[%clk 0:00:04]} 40... Qe2 {[%clk 0:00:04.7]} 41. a4 {[%clk
0:00:03.8]} 41... h4 {[%clk 0:00:05.2]} 42. f5 {[%clk 0:00:03.5]} 42... gxf5
{[%clk 0:00:04]} 43. Bc3 {[%clk 0:00:03.2]} 43... h3 {[%clk 0:00:04]} 44. Qc7
{[%clk 0:00:02.4]} 44... h2 {[%clk 0:00:03.3]} 45. Qg3+ {[%clk 0:00:02.4]} 45...
Kf7 {[%clk 0:00:04]} 46. Qh4 {[%clk 0:00:00.6]} 46... Qd1+ {[%clk 0:00:04.4]}
47. Kb2 {[%clk 0:00:01.3]} 47... h1=Q {[%clk 0:00:05.3]} 48. Qc4+ {[%clk
0:00:01.9]} 48... Kg7 {[%clk 0:00:05.8]} 49. Qc7 {[%clk 0:00:01.9]} 49... Qb1#
{[%clk 0:00:05.7]} 0-1

[Event "Late-Titled-Tuesday-Blitz-January-16-2024"]
[Site "Chess.com"]
[Date "2024.01.16"]
[Round "6"]
[White "K_A_S_T_O_R"]
[Black "GMKrikor"]
[Result "0-1"]
[WhiteElo "2903"]
[BlackElo "2734"]
[TimeControl "180+1"]
[EndTime "15:04:44 PST"]
[Termination "GMKrikor won by resignation"]

1. e4 {[%clk 0:02:54.5]} 1... e6 {[%clk 0:03:00.1]} 2. d4 {[%clk 0:02:53.3]}
2... d5 {[%clk 0:03:00.4]} 3. Nc3 {[%clk 0:02:53.7]} 3... Nf6 {[%clk 0:03:00.1]}
4. e5 {[%clk 0:02:54.2]} 4... Nfd7 {[%clk 0:03:00.1]} 5. Nce2 {[%clk 0:02:54.8]}
5... c5 {[%clk 0:03:00.3]} 6. c3 {[%clk 0:02:55.3]} 6... Nc6 {[%clk 0:03:00.2]}
7. f4 {[%clk 0:02:55.5]} 7... Be7 {[%clk 0:02:58]} 8. Nf3 {[%clk 0:02:55]} 8...
O-O {[%clk 0:02:54.5]} 9. a3 {[%clk 0:02:53.6]} 9... a5 {[%clk 0:02:50.4]} 10.
h4 {[%clk 0:02:48.6]} 10... f6 {[%clk 0:02:50]} 11. a4 {[%clk 0:02:29.2]} 11...
b6 {[%clk 0:02:37.9]} 12. Neg1 {[%clk 0:02:27.8]} 12... cxd4 {[%clk 0:02:25.8]}
13. cxd4 {[%clk 0:02:21.1]} 13... Ba6 {[%clk 0:01:52.9]} 14. Bxa6 {[%clk
0:02:19.2]} 14... Rxa6 {[%clk 0:01:53.8]} 15. Bd2 {[%clk 0:02:08.2]} 15... Ra8
{[%clk 0:01:49.3]} 16. Bc3 {[%clk 0:02:07.3]} 16... Qe8 {[%clk 0:01:36.2]} 17.
Qd3 {[%clk 0:02:05.4]} 17... Rc8 {[%clk 0:01:32.4]} 18. Ne2 {[%clk 0:02:02.9]}
18... Nb4 {[%clk 0:01:21.6]} 19. Bxb4 {[%clk 0:01:56.5]} 19... Bxb4+ {[%clk
0:01:22.5]} 20. Kf2 {[%clk 0:01:56.9]} 20... fxe5 {[%clk 0:01:18.4]} 21. fxe5
{[%clk 0:01:55.2]} 21... Qh5 {[%clk 0:01:10.8]} 22. Rac1 {[%clk 0:01:45.4]}
22... Rxc1 {[%clk 0:01:09.4]} 23. Nxc1 {[%clk 0:01:45.4]} 23... Nb8 {[%clk
0:00:53.6]} 24. Ne2 {[%clk 0:01:41.9]} 24... Nc6 {[%clk 0:00:52.1]} 25. g3
{[%clk 0:01:31.4]} 25... Ne7 {[%clk 0:00:42.8]} 26. Nf4 {[%clk 0:01:26.5]} 26...
Qg4 {[%clk 0:00:43]} 27. Ng5 {[%clk 0:01:17]} 27... Nf5 {[%clk 0:00:30.3]} 28.
Ngxe6 {[%clk 0:01:11.3]} 28... Nxg3 {[%clk 0:00:23.1]} 29. Qxg3 {[%clk
0:00:58.7]} 29... Qxe6 {[%clk 0:00:23.2]} 30. Rg1 {[%clk 0:00:54.2]} 30... g6
{[%clk 0:00:21.2]} 31. Ke3 {[%clk 0:00:49.9]} 31... Qf5 {[%clk 0:00:14.5]} 32.
Qf3 {[%clk 0:00:50]} 32... Qc2 {[%clk 0:00:09.3]} 33. Qxd5+ {[%clk 0:00:37.1]}
33... Kh8 {[%clk 0:00:09.3]} 34. Rg2 {[%clk 0:00:19.7]} 34... Qc1+ {[%clk
0:00:07.2]} 35. Kd3 {[%clk 0:00:20]} 35... Qxf4 {[%clk 0:00:06.6]} 36. Kc4
{[%clk 0:00:20.4]} 36... Qf1+ {[%clk 0:00:04.6]} 37. Kb3 {[%clk 0:00:19.2]}
37... Qd1+ {[%clk 0:00:03.8]} 38. Kc4 {[%clk 0:00:17.1]} 38... Qxa4 {[%clk
0:00:03.4]} 39. Kd3 {[%clk 0:00:16.9]} 39... Qd1+ {[%clk 0:00:02.8]} 40. Kc4
{[%clk 0:00:17.4]} 40... Qf1+ {[%clk 0:00:01.9]} 41. Kb3 {[%clk 0:00:16.7]}
41... Rc8 {[%clk 0:00:02.5]} 42. Rc2 {[%clk 0:00:14.8]} 42... Qd1 {[%clk
0:00:02.5]} 43. Qe4 {[%clk 0:00:13.4]} 43... Qxc2+ {[%clk 0:00:02.9]} 44. Qxc2
{[%clk 0:00:14]} 44... Rxc2 {[%clk 0:00:03.6]} 45. Kxc2 {[%clk 0:00:14.8]} 45...
Kg7 {[%clk 0:00:04.2]} 46. Kd3 {[%clk 0:00:15.3]} 46... b5 {[%clk 0:00:03.5]}
47. Ke4 {[%clk 0:00:16.2]} 47... Kf7 {[%clk 0:00:03.6]} 48. Kd5 {[%clk
0:00:15.9]} 48... Be7 {[%clk 0:00:04.2]} 49. Kc6 {[%clk 0:00:15.3]} 49... b4
{[%clk 0:00:04.9]} 50. d5 {[%clk 0:00:15.4]} 50... Ke8 {[%clk 0:00:05.6]} 51. d6
{[%clk 0:00:14.2]} 51... Bxh4 {[%clk 0:00:05.5]} 52. e6 {[%clk 0:00:15.1]} 52...
Bd8 {[%clk 0:00:05.6]} 53. b3 {[%clk 0:00:14.3]} 53... g5 {[%clk 0:00:05.6]} 54.
Kb7 {[%clk 0:00:13.6]} 54... g4 {[%clk 0:00:05.8]} 55. Kc8 {[%clk 0:00:14.1]}
55... g3 {[%clk 0:00:06.1]} 56. e7 {[%clk 0:00:14.2]} 56... Bxe7 {[%clk
0:00:06.6]} 57. d7+ {[%clk 0:00:14.6]} 57... Kf7 {[%clk 0:00:06.4]} 0-1

[Event "Late-Titled-Tuesday-Blitz-January-16-2024"]
[Site "Chess.com"]
[Date "2024.01.16"]
[Round "6"]
[White "SandwichOSaumon"]
[Black "IgorBjelobrk"]
[Result "1-0"]
[WhiteElo "2526"]
[BlackElo "2640"]
[TimeControl "180+1"]
[EndTime "15:04:53 PST"]
[Termination "SandwichOSaumon won by resignation"]

1. e4 {[%clk 0:03:00.9]} 1... e6 {[%clk 0:02:59.5]} 2. d4 {[%clk 0:03:00.1]}
2... d5 {[%clk 0:03:00]} 3. Nd2 {[%clk 0:03:00.7]} 3... c5 {[%clk 0:02:59.9]} 4.
exd5 {[%clk 0:03:00.9]} 4... exd5 {[%clk 0:02:59.8]} 5. Ngf3 {[%clk 0:03:01.2]}
5... Nc6 {[%clk 0:02:59.6]} 6. Bb5 {[%clk 0:03:00.7]} 6... cxd4 {[%clk
0:02:59.8]} 7. O-O {[%clk 0:02:59.5]} 7... Bd6 {[%clk 0:02:59.1]} 8. Nb3 {[%clk
0:02:58]} 8... Ne7 {[%clk 0:02:57.3]} 9. Nbxd4 {[%clk 0:02:57.4]} 9... O-O
{[%clk 0:02:54.2]} 10. h3 {[%clk 0:02:57.5]} 10... Bc7 {[%clk 0:02:51.5]} 11. c4
{[%clk 0:02:21.4]} 11... Nxd4 {[%clk 0:02:50.6]} 12. Qxd4 {[%clk 0:02:17.3]}
12... a6 {[%clk 0:02:42.8]} 13. Ba4 {[%clk 0:02:10.4]} 13... dxc4 {[%clk
0:02:41.8]} 14. Qc5 {[%clk 0:01:38.2]} 14... Bd6 {[%clk 0:02:21.1]} 15. Qd4
{[%clk 0:01:31.2]} 15... b5 {[%clk 0:02:17.1]} 16. Rd1 {[%clk 0:01:30.3]} 16...
Nf5 {[%clk 0:02:16]} 17. Qe4 {[%clk 0:01:21.1]} 17... Ra7 {[%clk 0:02:07.3]} 18.
Bc2 {[%clk 0:01:15.6]} 18... Re8 {[%clk 0:02:00.7]} 19. Qd5 {[%clk 0:01:03.1]}
19... Be6 {[%clk 0:01:51.4]} 20. Qc6 {[%clk 0:01:02.1]} 20... Rd7 {[%clk
0:01:12.6]} 21. Bg5 {[%clk 0:00:51]} 21... f6 {[%clk 0:01:09.5]} 22. Re1 {[%clk
0:00:41.2]} 22... fxg5 {[%clk 0:00:58.1]} 23. Bxf5 {[%clk 0:00:25.1]} 23... Bxf5
{[%clk 0:00:51.5]} 24. Qd5+ {[%clk 0:00:25.3]} 24... Kh8 {[%clk 0:00:50.9]} 25.
Qxf5 {[%clk 0:00:25.5]} 25... h6 {[%clk 0:00:45.1]} 26. Rxe8+ {[%clk 0:00:24.4]}
26... Qxe8 {[%clk 0:00:45.4]} 27. Re1 {[%clk 0:00:24.9]} 27... Re7 {[%clk
0:00:44.6]} 28. Rd1 {[%clk 0:00:21.5]} 28... Be5 {[%clk 0:00:39.3]} 29. h4
{[%clk 0:00:20.8]} 29... Bf6 {[%clk 0:00:23.1]} 30. hxg5 {[%clk 0:00:20.8]}
30... hxg5 {[%clk 0:00:24]} 31. g3 {[%clk 0:00:19.4]} 31... Re6 {[%clk
0:00:11.4]} 32. Kg2 {[%clk 0:00:19.7]} 32... Qe7 {[%clk 0:00:10.3]} 33. Rh1+
{[%clk 0:00:19.7]} 33... Kg8 {[%clk 0:00:10.4]} 34. Qh7+ {[%clk 0:00:19.9]}
34... Kf7 {[%clk 0:00:10.8]} 35. Qf5 {[%clk 0:00:20.6]} 35... Rd6 {[%clk
0:00:10.8]} 36. Nxg5+ {[%clk 0:00:20.8]} 36... Ke8 {[%clk 0:00:11.2]} 37. Rh8+
{[%clk 0:00:20.7]} 37... Qf8 {[%clk 0:00:11.6]} 38. Rxf8+ {[%clk 0:00:20.9]}
38... Kxf8 {[%clk 0:00:12.5]} 39. Nh7+ {[%clk 0:00:21.3]} 39... Ke7 {[%clk
0:00:12.7]} 40. Nxf6 {[%clk 0:00:21.2]} 40... gxf6 {[%clk 0:00:13.6]} 41. Qe4+
{[%clk 0:00:21.3]} 41... Kd7 {[%clk 0:00:12.1]} 42. Qb7+ {[%clk 0:00:22.2]}
42... Ke6 {[%clk 0:00:12.4]} 43. Kf3 {[%clk 0:00:22.4]} 43... f5 {[%clk
0:00:11.4]} 44. Ke2 {[%clk 0:00:21.9]} 44... Ke5 {[%clk 0:00:11.8]} 45. Qe7+
{[%clk 0:00:21.7]} 45... Kd5 {[%clk 0:00:12]} 46. Qc7 {[%clk 0:00:22.4]} 46...
Rc6 {[%clk 0:00:11.8]} 47. Qb7 {[%clk 0:00:22.3]} 47... Kc5 {[%clk 0:00:11.9]}
48. Kd2 {[%clk 0:00:21.3]} 48... b4 {[%clk 0:00:12.1]} 49. Kc2 {[%clk
0:00:21.3]} 49... a5 {[%clk 0:00:12.4]} 50. Qe7+ {[%clk 0:00:21.5]} 50... Kb5
{[%clk 0:00:12.2]} 51. Qf8 {[%clk 0:00:20.4]} 51... Rc5 {[%clk 0:00:12.1]} 52.
Qe8+ {[%clk 0:00:20.5]} 52... Kb6 {[%clk 0:00:11.9]} 53. Qd7 {[%clk 0:00:20.6]}
53... c3 {[%clk 0:00:11.4]} 54. bxc3 {[%clk 0:00:19.9]} 54... Rxc3+ {[%clk
0:00:11.5]} 55. Kb2 {[%clk 0:00:20.3]} 55... Rc5 {[%clk 0:00:12.4]} 56. a4
{[%clk 0:00:19.2]} 56... Rc6 {[%clk 0:00:10.7]} 57. Qd5 {[%clk 0:00:19]} 57...
Rc5 {[%clk 0:00:11]} 58. Qe6+ {[%clk 0:00:19.6]} 58... Kc7 {[%clk 0:00:11]} 59.
f3 {[%clk 0:00:17.9]} 59... Kb7 {[%clk 0:00:11.1]} 60. g4 {[%clk 0:00:18.3]}
60... fxg4 {[%clk 0:00:11.5]} 61. fxg4 {[%clk 0:00:19.2]} 61... Rc3 {[%clk
0:00:11.5]} 62. g5 {[%clk 0:00:19]} 62... Ra3 {[%clk 0:00:11.9]} 63. g6 {[%clk
0:00:18.5]} 63... Rg3 {[%clk 0:00:11.6]} 64. Qd7+ {[%clk 0:00:16.9]} 64... Kb8
{[%clk 0:00:11.6]} 65. g7 {[%clk 0:00:17.2]} 1-0

[Event "Late-Titled-Tuesday-Blitz-January-16-2024"]
[Site "Chess.com"]
[Date "2024.01.16"]
[Round "6"]
[White "Msb2"]
[Black "Elsa167"]
[Result "1/2-1/2"]
[WhiteElo "3031"]
[BlackElo "2861"]
[TimeControl "180+1"]
[EndTime "15:04:54 PST"]
[Termination "Game drawn by repetition"]

1. d4 {[%clk 0:03:00.9]} 1... Nf6 {[%clk 0:02:59.9]} 2. c4 {[%clk 0:03:01]} 2...
e6 {[%clk 0:03:00.4]} 3. Nc3 {[%clk 0:03:01.3]} 3... c5 {[%clk 0:02:59.9]} 4. d5
{[%clk 0:03:00.3]} 4... exd5 {[%clk 0:03:00.5]} 5. cxd5 {[%clk 0:03:01.2]} 5...
d6 {[%clk 0:03:00.8]} 6. e4 {[%clk 0:03:01.5]} 6... g6 {[%clk 0:03:01.4]} 7. h3
{[%clk 0:03:02]} 7... Bg7 {[%clk 0:03:01.8]} 8. Nf3 {[%clk 0:03:02.6]} 8... O-O
{[%clk 0:03:02.4]} 9. Bd3 {[%clk 0:03:03.3]} 9... Re8 {[%clk 0:03:00.5]} 10. O-O
{[%clk 0:03:03.1]} 10... Nbd7 {[%clk 0:03:00.5]} 11. Bf4 {[%clk 0:03:01.4]}
11... c4 {[%clk 0:03:00.6]} 12. Bc2 {[%clk 0:02:57.2]} 12... Nc5 {[%clk
0:03:00.6]} 13. Nd2 {[%clk 0:02:51]} 13... b5 {[%clk 0:02:49.3]} 14. Nxb5 {[%clk
0:02:42.1]} 14... Nfxe4 {[%clk 0:02:48.5]} 15. Nxc4 {[%clk 0:02:33.2]} 15... Ba6
{[%clk 0:02:38.3]} 16. Nbxd6 {[%clk 0:02:20.3]} 16... Nxd6 {[%clk 0:02:34.8]}
17. Nxd6 {[%clk 0:02:21.2]} 17... Re5 {[%clk 0:01:43.5]} 18. Bxe5 {[%clk
0:01:51.9]} 18... Bxe5 {[%clk 0:01:44.4]} 19. Ne4 {[%clk 0:01:52.6]} 19... Nxe4
{[%clk 0:01:43.9]} 20. Bxe4 {[%clk 0:01:53.5]} 20... Bxf1 {[%clk 0:01:43.9]} 21.
Qxf1 {[%clk 0:01:53.6]} 21... Bxb2 {[%clk 0:01:39.4]} 22. Rb1 {[%clk 0:01:40.6]}
22... Be5 {[%clk 0:01:37.9]} 23. g3 {[%clk 0:01:38.7]} 23... Bd6 {[%clk
0:01:33.2]} 24. Kg2 {[%clk 0:01:38]} 24... Qf6 {[%clk 0:01:30.8]} 25. Bf3 {[%clk
0:01:35.3]} 25... Re8 {[%clk 0:01:25.7]} 26. Re1 {[%clk 0:01:34.8]} 26... Rxe1
{[%clk 0:01:20]} 27. Qxe1 {[%clk 0:01:35.7]} 27... Kg7 {[%clk 0:01:19.5]} 28. h4
{[%clk 0:01:35.6]} 28... h5 {[%clk 0:01:19.6]} 29. Qe3 {[%clk 0:01:35.1]} 29...
Qe7 {[%clk 0:01:10.6]} 30. Qd4+ {[%clk 0:01:35]} 30... Kg8 {[%clk 0:01:03.7]}
31. Qc4 {[%clk 0:01:27.4]} 31... Qc7 {[%clk 0:01:03.2]} 32. Qc6 {[%clk
0:01:14.6]} 32... Kg7 {[%clk 0:00:50.1]} 33. Kf1 {[%clk 0:01:02.7]} 33... Qe7
{[%clk 0:00:49.1]} 34. Qc4 {[%clk 0:00:55.7]} 34... Qf6 {[%clk 0:00:46.5]} 35.
Kg2 {[%clk 0:00:56]} 35... Qe7 {[%clk 0:00:45.6]} 36. Qd4+ {[%clk 0:00:55.9]}
36... Kg8 {[%clk 0:00:46.2]} 37. Be4 {[%clk 0:00:52.7]} 37... Bc5 {[%clk
0:00:44.3]} 38. Qd3 {[%clk 0:00:48.5]} 38... Qf6 {[%clk 0:00:42.9]} 39. Qe2
{[%clk 0:00:42]} 39... Qe5 {[%clk 0:00:40.5]} 40. Qf3 {[%clk 0:00:37.5]} 40...
Kg7 {[%clk 0:00:39.6]} 41. Bc2 {[%clk 0:00:36.9]} 41... Qf6 {[%clk 0:00:37.2]}
42. Qe2 {[%clk 0:00:37.4]} 42... Qb2 {[%clk 0:00:34.9]} 43. Qc4 {[%clk 0:00:33]}
43... Bd6 {[%clk 0:00:30.8]} 44. Bb3 {[%clk 0:00:29.7]} 44... Qf6 {[%clk
0:00:30.1]} 45. Qe4 {[%clk 0:00:29.5]} 45... Qe7 {[%clk 0:00:30.1]} 46. Qxe7
{[%clk 0:00:27.9]} 46... Bxe7 {[%clk 0:00:30]} 47. Kf3 {[%clk 0:00:28.5]} 47...
Bc5 {[%clk 0:00:28.2]} 48. Ke2 {[%clk 0:00:27.2]} 48... f5 {[%clk 0:00:28.2]}
49. Ba4 {[%clk 0:00:26.5]} 49... Kf6 {[%clk 0:00:28.1]} 50. Be8 {[%clk
0:00:27.2]} 50... Bd6 {[%clk 0:00:26]} 51. Kd3 {[%clk 0:00:23.8]} 51... Bc5
{[%clk 0:00:25]} 52. Ke2 {[%clk 0:00:18.3]} 52... Bd6 {[%clk 0:00:25.4]} 53. a4
{[%clk 0:00:18.2]} 53... a5 {[%clk 0:00:24.6]} 54. Kf3 {[%clk 0:00:18.8]} 54...
Bc5 {[%clk 0:00:24.6]} 55. Kg2 {[%clk 0:00:19.5]} 55... Kg7 {[%clk 0:00:24.6]}
56. f3 {[%clk 0:00:19.9]} 56... Kf6 {[%clk 0:00:24.5]} 57. Kh3 {[%clk
0:00:20.2]} 57... Bd6 {[%clk 0:00:24]} 58. g4 {[%clk 0:00:20.6]} 58... fxg4+
{[%clk 0:00:24.9]} 59. fxg4 {[%clk 0:00:21.5]} 59... hxg4+ {[%clk 0:00:25.6]}
60. Kxg4 {[%clk 0:00:22.4]} 60... Be7 {[%clk 0:00:21.8]} 61. Kf4 {[%clk
0:00:21.9]} 61... Bd6+ {[%clk 0:00:17.5]} 62. Kf3 {[%clk 0:00:18.3]} 62... Bc5
{[%clk 0:00:15.9]} 63. Ke4 {[%clk 0:00:15.9]} 63... Bf2 {[%clk 0:00:15.6]} 64.
h5 {[%clk 0:00:15.6]} 64... gxh5 {[%clk 0:00:15.6]} 65. Bxh5 {[%clk 0:00:16.5]}
65... Bc5 {[%clk 0:00:15.5]} 66. Kd3 {[%clk 0:00:16.8]} 66... Ke7 {[%clk
0:00:14.5]} 67. Kc4 {[%clk 0:00:17.4]} 67... Bb4 {[%clk 0:00:14.8]} 68. Kb5
{[%clk 0:00:17.1]} 68... Kd6 {[%clk 0:00:15.5]} 69. Bf3 {[%clk 0:00:17.8]} 69...
Be1 {[%clk 0:00:15.4]} 70. Bh1 {[%clk 0:00:18.5]} 70... Bb4 {[%clk 0:00:16.1]}
71. Bg2 {[%clk 0:00:19.4]} 71... Be1 {[%clk 0:00:16.6]} 72. Bh1 {[%clk
0:00:20.3]} 72... Bb4 {[%clk 0:00:17.3]} 73. Bg2 {[%clk 0:00:21.2]} 73... Be1
{[%clk 0:00:17.9]} 74. Bh1 {[%clk 0:00:22.1]} 1/2-1/2